fUSD/lending_fUSD_20240707
["ID","MTS","AMOUNT","RATE_DAILY","PERIOD"]
[331417454,1720368624495,436.28102237,0.00011199,2]
[331417469,1720368632796,-898.571538,0.00012173,2]
[331417470,1720368632805,-889.8302,0.00012208,2]
[331417471,1720368632815,-193.62934922,0.00012273,2]
[331417472,1720368632826,-298.54605037,0.00012302,2]
[331417473,1720368632839,-229.26553318,0.00012302,2]
[331417474,1720368632849,-172.94473413,0.00012314,2]
[331417475,1720368632859,-161.19035565,0.00012451,2]
[331417476,1720368632869,-404.68849185,0.00012658,2]
[331417477,1720368632881,-825.78150815,0.00012658,2]
[331417478,1720368632891,-389.39,0.00012721,2]
[331417479,1720368632902,-2363.44,0.00012729,2]
[331417480,1720368632913,-250.0,0.00012764,2]
[331417481,1720368632924,-300.0,0.00012766,2]
[331417482,1720368632936,-2698.73178348,0.00012767,2]
[331417483,1720368632949,-1312.15,0.00012767,2]
[331417484,1720368632961,-679.73,0.00012767,2]
[331417485,1720368632974,-7371.93821652,0.00012767,2]
[331417486,1720368632985,-345.34,0.00012767,2]
[331417487,1720368632995,-250.0,0.00012782,2]
[331417488,1720368633004,-1000.0,0.00012785,2]
[331417489,1720368633013,-627.99,0.00012788,2]
[331417490,1720368633023,-187.75,0.00012794,2]
[331417491,1720368633033,-150.0,0.00012844,2]
[331417492,1720368633043,-200.0,0.00013035,2]
[331417493,1720368633053,-370.2,0.00013035,2]
[331417494,1720368633064,-416.66,0.00013108,2]
[331417495,1720368633074,-2375.40634291,0.00013128,2]
[331417496,1720368633083,-155.17489344,0.00013128,2]
[331417497,1720368633092,-1265.3117464,0.00013128,2]
[331417498,1720368633102,-531.18454026,0.00013144,2]
[331417499,1720368633111,-300.0,0.000133,4]
[331417500,1720368633121,-700.0,0.000134,4]
[331417501,1720368633130,-524.57681731,0.00013472,2]
[331417502,1720368633139,-1100.0,0.000135,4]
[331417503,1720368633148,-155.0,0.00013516,2]
[331417504,1720368633158,-1050.0,0.00013516,2]
[331417505,1720368633167,-150.0,0.00013573,2]
[331417506,1720368633176,-11323.04420243,0.00013574,2]
[331417507,1720368633185,-1400.0,0.000136,4]
[331417508,1720368633194,-223.72,0.00013699,2]
[331417509,1720368633205,-1800.0,0.000137,5]
[331417510,1720368633214,-150.0,0.00013709,2]
[331417511,1720368633224,-184.0,0.0001371,2]
[331417512,1720368633233,-150.0,0.00013715,2]
[331417513,1720368633243,-150.0,0.00013724,2]
[331417514,1720368633252,-150.0,0.00013727,2]
[331417515,1720368633261,-150.0,0.00013729,2]
[331417516,1720368633270,-1500.0,0.00013732,2]
[331417517,1720368633280,-150.0,0.00013732,2]
[331417518,1720368633290,-150.0,0.00013735,2]
[331417519,1720368633300,-1500.0,0.00013738,2]
[331417520,1720368633309,-300.0,0.00013738,2]
[331417521,1720368633318,-150.0,0.00013743,2]
[331417522,1720368633331,-150.0,0.00013744,2]
[331417523,1720368633340,-150.0,0.00013747,2]
[331417524,1720368633350,-150.0,0.00013751,2]
[331417525,1720368633359,-150.0,0.00013752,2]
[331417526,1720368633369,-150.0,0.00013755,2]
[331417527,1720368633379,-150.0,0.00013755,2]
[331417528,1720368633388,-150.0,0.00013755,2]
[331417529,1720368633398,-1500.0,0.00013756,2]
[331417530,1720368633408,-150.0,0.00013756,2]
[331417531,1720368633417,-150.0,0.00013756,2]
[331417532,1720368633427,-150.0,0.00013757,2]
[331417533,1720368633437,-150.0,0.00013758,2]
[331417534,1720368633447,-150.0,0.00013758,2]
[331417535,1720368633456,-150.0,0.00013759,2]
[331417536,1720368633465,-150.0,0.00013761,2]
[331417537,1720368633476,-1500.0,0.00013762,2]
[331417538,1720368633485,-150.0,0.00013763,2]
[331417539,1720368633495,-150.0,0.00013766,2]
[331417540,1720368633504,-150.0,0.00013768,2]
[331417541,1720368633513,-150.0,0.0001377,2]
[331417542,1720368633523,-150.0,0.00013773,2]
[331417543,1720368633532,-150.0,0.00013775,2]
[331417544,1720368633541,-150.0,0.00013776,2]
[331417545,1720368633552,-150.0,0.00013786,2]
[331417546,1720368633562,-150.0,0.00013792,2]
[331417547,1720368633576,-150.0,0.00013794,2]
[331417548,1720368633586,-150.0,0.00013794,2]
[331417549,1720368633596,-300.0,0.00013799,2]
[331417550,1720368633608,-300.0,0.000138,5]
[331417551,1720368633619,-1500.0,0.00013808,2]
[331417552,1720368633629,-150.0,0.00013808,2]
[331417553,1720368633639,-150.0,0.00013808,2]
[331417554,1720368633650,-150.0,0.00013813,2]
[331417555,1720368633659,-150.0,0.00013814,2]
[331417556,1720368633668,-1500.0,0.00013818,2]
[331417557,1720368633678,-304.34682513,0.00013819,2]
[331417558,1720368633688,-150.0,0.00013819,2]
[331417559,1720368633698,-150.0,0.0001382,2]
[331417560,1720368633707,-150.0,0.00013827,2]
[331417561,1720368633717,-150.0,0.00013828,2]
[331417562,1720368633727,-1500.0,0.00013829,2]
[331417563,1720368633736,-150.0,0.00013829,2]
[331417564,1720368633747,-300.0,0.0001383,2]
[331417565,1720368633757,-150.0,0.00013832,2]
[331417566,1720368633766,-300.0,0.00013834,2]
[331417567,1720368633776,-150.0,0.00013834,2]
[331417568,1720368633785,-150.0,0.00013836,2]
[331417569,1720368633795,-150.0,0.00013837,2]
[331417570,1720368633805,-150.0,0.0001384,2]
[331417571,1720368633815,-150.0,0.00013841,2]
[331417572,1720368633827,-150.0,0.00013841,2]
[331417573,1720368633837,-150.0,0.00013849,2]
[331417574,1720368633846,-1500.0,0.00013852,2]
[331417575,1720368633857,-150.0,0.00013853,2]
[331417576,1720368633869,-150.0,0.00013856,2]
[331417577,1720368633879,-150.0,0.00013857,2]
[331417578,1720368633889,-150.0,0.00013859,2]
[331417579,1720368633898,-563.573,0.0001386,2]
[331417580,1720368633908,-150.0,0.00013863,2]
[331417581,1720368633917,-150.0,0.00013865,2]
[331417582,1720368633928,-150.0,0.00013866,2]
[331417583,1720368633940,-150.0,0.00013869,2]
[331417584,1720368633949,-150.0,0.00013873,2]
[331417585,1720368633959,-1500.0,0.00013874,2]
[331417586,1720368633968,-150.0,0.00013875,2]
[331417587,1720368633978,-151.36794289,0.00013875,2]
[331417588,1720368633987,-150.0,0.00013876,2]
[331417589,1720368633999,-150.0,0.00013879,2]
[331417590,1720368634011,-150.0,0.00013882,2]
[331417591,1720368634021,-150.0,0.00013884,2]
[331417592,1720368634031,-150.0,0.00013884,2]
[331417593,1720368634040,-500.0,0.00013888,2]
[331417594,1720368634051,-150.0,0.00013888,2]
[331417595,1720368634061,-787.19208309,0.00013889,2]
[331417596,1720368634071,-150.0,0.00013892,2]
[331417597,1720368634083,-150.0,0.00013893,2]
[331417598,1720368634093,-150.0,0.00013896,2]
[331417599,1720368634102,-298.50467804,0.00013899,2]
[331417600,1720368634115,-2289.2145,0.000139,2]
[331417601,1720368634125,-221.4142,0.000139,2]
[331417602,1720368634134,-322.80535937,0.000139,2]
[331417603,1720368634143,-300.0,0.000139,5]
[331417604,1720368634154,-150.0,0.00013903,2]
[331417605,1720368634163,-1500.0,0.00013913,2]
[331417606,1720368634172,-150.0,0.00013918,2]
[331417607,1720368634182,-150.0,0.00013918,2]
[331417608,1720368634191,-1500.0,0.00013919,2]
[331417609,1720368634201,-150.0,0.00013919,2]
[331417610,1720368634211,-1500.0,0.00013921,2]
[331417611,1720368634221,-300.0,0.00013922,2]
[331417612,1720368634230,-150.0,0.00013922,2]
[331417613,1720368634239,-150.0,0.00013924,2]
[331417614,1720368634249,-150.0,0.00013928,2]
[331417615,1720368634258,-150.0,0.00013929,2]
[331417616,1720368634268,-300.0,0.00013933,2]
[331417617,1720368634278,-150.0,0.00013934,2]
[331417618,1720368634287,-150.0,0.00013936,2]
[331417619,1720368634297,-1500.0,0.00013937,2]
[331417620,1720368634306,-150.0,0.00013937,2]
[331417621,1720368634315,-432.31383467,0.00013941,2]
[331417622,1720368634327,-150.0,0.00013945,2]
[331417623,1720368634337,-150.0,0.00013948,2]
[331417624,1720368634347,-150.0,0.00013948,2]
[331417625,1720368634358,-1500.0,0.0001395,2]
[331417626,1720368634368,-150.0,0.0001395,2]
[331417627,1720368634378,-150.0,0.0001395,2]
[331417628,1720368634388,-150.0,0.00013954,2]
[331417629,1720368634398,-150.0,0.00013955,2]
[331417630,1720368634408,-150.0,0.00013956,2]
[331417631,1720368634419,-150.0,0.00013957,2]
[331417632,1720368634429,-1500.0,0.00013959,2]
[331417633,1720368634439,-150.0,0.00013959,2]
[331417634,1720368634450,-150.0,0.00013969,2]
[331417635,1720368634459,-437.63040776,0.0001397,2]
[331417636,1720368634469,-150.0,0.00013976,2]
[331417637,1720368634479,-1251.0,0.0001398,2]
[331417638,1720368634488,-1655.0,0.0001398,2]
[331417639,1720368634498,-1820.0,0.0001398,2]
[331417640,1720368634508,-1303.0,0.0001398,2]
[331417641,1720368634518,-2375.0,0.0001398,2]
[331417642,1720368634528,-523.142,0.0001398,2]
[331417643,1720368634538,-646.313,0.0001398,2]
[331417644,1720368634547,-3250.0,0.0001398,2]
[331417645,1720368634560,-154.85500966,0.0001398,2]
[331417646,1720368634569,-150.0,0.0001398,2]
[331417647,1720368634586,-150.0,0.00013984,2]
[331417648,1720368634598,-300.0,0.00013985,2]
[331417649,1720368634612,-1500.0,0.00013987,2]
[331417650,1720368634622,-1500.0,0.00013988,2]
[331417651,1720368634632,-156.0238286,0.00013989,2]
[331417652,1720368634642,-155.77985922,0.00013989,2]
[331417653,1720368634651,-194.24643572,0.00013989,2]
[331417654,1720368634661,-276.28471959,0.00013989,2]
[331417655,1720368634670,-651.60629957,0.00013989,2]
[331417656,1720368634680,-626.09548274,0.00013989,2]
[331417657,1720368634691,-155.0,0.00013989,2]
[331417658,1720368634700,-406.5808008,0.00013989,2]
[331417659,1720368634709,-302.78824891,0.00013989,2]
[331417660,1720368634719,-245.8714235,0.0001399,2]
[331417661,1720368634728,-1741.9525908,0.0001399,2]
[331417662,1720368634738,-156.0238286,0.0001399,2]
[331417663,1720368634747,-486.74123919,0.00013999,2]
[331417664,1720368634756,-226.5848512,0.00013999,2]
[331417665,1720368634766,-338.54061163,0.00014,2]
[331417666,1720368634780,-198.45938837,0.00014,2]
[331417667,1720368634790,-608.75484931,0.00014,2]
[331417668,1720368634801,-739.69628748,0.00014,2]
[331417669,1720368634812,-4781.02268136,0.00014,2]
[331417670,1720368634828,-966.43463374,0.00014,2]
[331417671,1720368634839,-463.61871879,0.00014,2]
[331417672,1720368634851,-270024.33978012,0.00014,2]
[331417673,1720368634862,-7512.38787968,0.00014,2]
[331417695,1720368637659,-545.8850205,0.00013899,2]
[331417696,1720368637961,-114.36974613,0.00013899,2]
[331417697,1720368637972,-155.0,0.00013989,2]
[331417698,1720368637983,-1338.28797379,0.00014,2]
[331417699,1720368638003,-10119.16015425,0.00014,2]
[331417702,1720368639752,-246.77971328,0.00013999,2]
[331417703,1720368639762,-715.49938342,0.00014,2]
[331417704,1720368640039,-306.4851088,0.00014,2]
[331417716,1720368643867,-570.96966,0.00014,2]
[331417717,1720368643878,-34484.99303155,0.00014,2]
[331417718,1720368643895,-5516.79467206,0.00014,2]
[331417720,1720368645535,-541920.21225216,0.00014,2]
[331417721,1720368645547,-1743531.12009284,0.00014,2]
[331417722,1720368645563,-500.50415846,0.00014,2]
[331417741,1720368645807,-43164.2867527,0.00014,2]
[331418224,1720369001191,193.62934922,0.00011199,2]
[331418226,1720369040133,626.09548274,0.00011199,2]
[331418227,1720369058888,366.11090361,0.00011199,2]
[331418228,1720369064278,599.69883692,0.00011199,2]
[331418229,1720369065136,346.03148912,0.00011199,2]
[331418230,1720369069495,305.26949333,0.00011199,2]
[331418231,1720369076413,285.04380365,0.00011199,2]
[331418232,1720369080969,373.95520151,0.00011199,2]
[331418233,1720369102736,521.32,0.00010907,2]
[331418234,1720369109058,155.0,0.00011199,2]
[331418235,1720369109871,218.40264018,0.00011199,2]
[331418237,1720369199369,309.83496123,0.00011199,2]
[331418238,1720369213749,12282.55495953,0.00011199,2]
[331418239,1720369327440,552.57239721,0.00011199,2]
[331418240,1720369382033,276.28471959,0.00011199,2]
[331418241,1720369397261,276.28471959,0.00011199,2]
[331418243,1720369498939,155.14159365,0.00011199,2]
[331418244,1720369499324,1075.22218458,0.00011199,2]
[331418245,1720369515735,441.46702588,0.00011199,2]
[331418250,1720369686055,495.25,0.00010538,2]
[331418259,1720369722299,1156.82676208,0.00011199,2]
[331418265,1720369733998,172.94473413,0.00011199,2]
[331418372,1720369834061,-150.0,0.00011688,2]
[331418373,1720369834072,-276.28471959,0.00012273,2]
[331418374,1720369834083,-1537.28,0.0001229,2]
[331418375,1720369834092,-528.85282997,0.00012302,2]
[331418376,1720369834102,-156.42393702,0.00012302,2]
[331418377,1720369834111,-900.0,0.00012302,2]
[331418378,1720369834120,-222.8249572,0.00012314,2]
[331418379,1720369834130,-227.22563372,0.00012314,2]
[331418380,1720369834140,-150.0,0.00012337,2]
[331418381,1720369834151,-518.58180068,0.0001237,2]
[331418382,1720369834163,-827.43819932,0.0001237,2]
[331418383,1720369834175,-200.0,0.0001253,2]
[331418384,1720369834186,-186.49929072,0.00012556,2]
[331418385,1720369834199,-113.50070928,0.00012556,2]
[331418386,1720369834209,-221.10929072,0.00012557,2]
[331418387,1720369834221,-521.124372,0.00012557,2]
[331418388,1720369834233,-258.60629429,0.00012557,2]
[331418389,1720369834246,-10182.12004299,0.00012557,2]
[331418390,1720369834256,-250.0,0.00012559,2]
[331418391,1720369834267,-150.0,0.00012586,2]
[331418392,1720369834278,-153.39,0.00012677,2]
[331418393,1720369834287,-409.9750936,0.00012801,2]
[331418394,1720369834300,-85.2749064,0.00012801,2]
[331418395,1720369834309,-1000.0,0.00012841,2]
[331418396,1720369834319,-209.8,0.00012844,2]
[331418397,1720369834330,-150.99,0.00012844,2]
[331418398,1720369834340,-153.39,0.00012897,2]
[331418399,1720369834350,-150.0,0.00012986,2]
[331418400,1720369834359,-2270.60029107,0.00013,2]
[331418401,1720369834372,-8978.02020003,0.00013,2]
[331418402,1720369835068,276.28471959,0.00011199,2]
[331418407,1720369837827,-644.47142518,0.00013,2]
[331418408,1720369837909,-6761.68653056,0.00013,2]
[331418409,1720369837996,-520.25670657,0.00013,2]
[331418517,1720369839969,-3455.39202086,0.00013,2]
[331418521,1720369840004,-365.28812082,0.00013,2]
[331418523,1720369840019,-884.16644664,0.00013,2]
[331418530,1720369840086,-4620.65287364,0.00013,2]
[331418540,1720369840171,-4511441.59947039,0.00013,2]
[331418542,1720369840185,-1537.79215374,0.00013,2]
[331418747,1720369842977,-697.39124285,0.00013,2]
[331418748,1720369842989,-613.09825755,0.00013,2]
[331418749,1720369843006,-371.88983172,0.00013,2]
[331418750,1720369843018,-2290.49213652,0.00013,2]
[331418751,1720369843030,-12320.28412043,0.00013,2]
[331418752,1720369843734,-851.90336111,0.00013,2]
[331418753,1720369843751,-10702.70300256,0.00013,2]
[331418754,1720369843768,-16028.95391769,0.00013,2]
[331418755,1720369843780,-419.87653924,0.00013,2]
[331418770,1720369846675,-3385.86256862,0.00013,2]
[331418771,1720369846687,-547.84176427,0.00013,2]
[331418772,1720369846698,-831.51467711,0.00013,2]
[331418773,1720369846711,-337.08969517,0.00013,2]
[331418774,1720369846723,-377.32309539,0.00013,2]
[331418775,1720369846735,-3340.70768241,0.00013,2]
[331418776,1720369846746,-682.11513532,0.00013,2]
[331418777,1720369846766,-42814.15087304,0.00013,2]
[331418778,1720369846777,-620.1702649,0.00013,2]
[331418779,1720369846788,-1673.90043411,0.00013,2]
[331418799,1720370015041,3022.81708204,0.00011199,2]
[331418800,1720370030825,2432.50735589,0.00011199,2]
[331418801,1720370051785,10876.78488563,0.00011,2]
[331418802,1720370070836,9633.56152584,6.94e-05,2]
[331418804,1720370128095,1334.00714204,0.00011199,2]
[331418805,1720370134409,118594.62337053,6.94e-05,2]
[331418806,1720370142295,1742.85611798,8.412e-05,2]
[331418807,1720370160376,1398.95077001,0.00011199,2]
[331418809,1720370169625,1169.048298,8.412e-05,2]
[331418810,1720370172547,2618.82121878,8.412e-05,2]
[331418811,1720370174584,946.68077921,0.00010196,2]
[331418812,1720370185407,1131.53749588,0.00010196,2]
[331418813,1720370188858,1069.67493178,0.00010196,2]
[331418814,1720370188889,1054.88934928,0.00010196,2]
[331418815,1720370197227,520.06850352,0.00011199,2]
[331418816,1720370202545,978.16242731,0.00010196,2]
[331418817,1720370211140,174.58594608,0.00010196,2]
[331418820,1720370224105,652801.14797379,0.000225,120]
[331418823,1720370229528,3074.42673232,0.00011199,2]
[331418824,1720370233690,1019.95118513,0.00010196,2]
[331418831,1720370257524,193.67622341,0.00011199,2]
[331418832,1720370260876,2495.57012719,0.00011199,2]
[331418833,1720370264819,155.0,0.00011199,2]
[331418834,1720370288629,194.02066443,0.00011199,2]
[331418835,1720370289229,380.58928978,0.00011199,2]
[331418836,1720370290548,254.25713924,0.00011199,2]
[331418837,1720370319572,10905.90770126,0.00011199,2]
[331418838,1720370327086,277.18522389,0.00011199,2]
[331418839,1720370327912,860.17499323,0.00011199,2]
[331418840,1720370388586,651.60629957,0.00011199,2]
[331418841,1720370403641,534.19365946,0.00011199,2]
[331418842,1720370409593,518.63271752,0.00011199,2]
[331418843,1720370410912,163.84671005,0.00011199,2]
[331418844,1720370440920,530.07,0.00010015,2]
[331418845,1720370465592,300.51199197,0.00011199,2]
[331418846,1720370487236,366.32433738,0.00011199,2]
[331418847,1720370519363,6756.3942821,0.00011199,2]
[331418848,1720370519410,155.0,0.00011199,2]
[331418849,1720370548754,1339.30572238,0.00011199,2]
[331418850,1720370588629,155.7163574,0.00011199,2]
[331418851,1720370595283,155.0,0.00011199,2]
[331418852,1720370599270,496.65211333,0.00011199,2]
[331418853,1720370658555,1048.92984428,0.00011199,2]
[331418854,1720370672134,439.94982301,0.00011199,2]
[331418855,1720370683361,1547.97912297,0.00011199,2]
[331418856,1720370683872,313.13704175,0.00011199,2]
[331418857,1720370688826,403.4503373,0.00011199,2]
[331418858,1720370693592,305.69878088,0.00011199,2]
[331418859,1720370708568,165.177188,0.00011199,2]
[331418861,1720370724965,217.90047204,0.00011199,2]
[331418862,1720370725891,202.25757491,0.00011199,2]
[331418863,1720370726103,246.95949093,0.00011199,2]
[331418864,1720370736222,346.55980804,0.00011199,2]
[331418865,1720370756159,486.61414226,0.00011199,2]
[331418866,1720370756600,604.78351958,0.00011199,2]
[331418867,1720370788462,366.58364766,0.00011199,2]
[331418868,1720370789153,196.43586911,0.00011199,2]
[331418869,1720370794559,774.92376784,0.00011199,2]
[331418870,1720370848650,-687737.5747313,0.000225,120]
[331418871,1720370871296,-1524506.94212229,0.00034343,30]
[331418872,1720370871324,-11644.48891544,0.00034343,30]
[331418873,1720370871359,-983.0,0.00034343,30]
[331418874,1720370871384,-152.399999,0.00034343,30]
[331418875,1720370871408,-127934.89454699,0.00034343,30]
[331418876,1720370871434,-267.98536752,0.00034343,120]
[331418877,1720370871901,-191.0,0.00034343,30]
[331418878,1720370871929,-150.0,0.00034343,120]
[331418879,1720370871954,-150.0,0.00034343,120]
[331418880,1720370871979,-351.29064736,0.00034343,31]
[331418881,1720370872003,-191.0,0.00034343,30]
[331418882,1720370872026,-516.0,0.00034343,30]
[331418883,1720370872051,-980.5,0.00034343,30]
[331418884,1720370872076,-2000.0,0.00034343,30]
[331418885,1720370872100,-4546.0,0.00034343,30]
[331418886,1720370872126,-191.0,0.00034343,30]
[331418887,1720370876615,195.95419342,0.00011199,2]
[331418888,1720370895309,180.3621562,0.00011199,2]
[331418889,1720370923263,366.32433738,0.00011199,2]
[331418890,1720370924806,296.77788761,0.00011199,2]
[331418891,1720370936381,155.0,0.00011199,2]
[331418892,1720370951390,155.0,0.00011199,2]
[331418893,1720370956907,155.26295347,0.00011199,2]
[331418894,1720370973741,-449.34,0.00011452,2]
[331418895,1720370973774,-250.0,0.00011494,2]
[331418897,1720370973805,-250.0,0.00011527,2]
[331418900,1720370973837,-200.0,0.00011544,2]
[331418903,1720370973869,-300.0,0.00011569,2]
[331418904,1720370973901,-5014.87816104,0.0001157,2]
[331418905,1720370973937,-6464.21816104,0.0001157,2]
[331418906,1720370973976,-6464.21816104,0.0001157,2]
[331418907,1720370974013,-5045.11551688,0.0001157,2]
[331418908,1720370974045,-167.84,0.00011599,2]
[331418909,1720370974076,-150.0,0.00011688,2]
[331418910,1720370974107,-1101.26264416,0.00011799,2]
[331418911,1720370974143,-823.18956915,0.00011799,2]
[331418912,1720370974175,-5641.02859189,0.000118,2]
[331418913,1720370974216,-6464.21816104,0.000118,2]
[331418915,1720370974252,-6464.21816104,0.000118,2]
[331418918,1720370974289,-6464.21816104,0.000118,2]
[331418920,1720370974324,-6464.21816104,0.000118,2]
[331418921,1720370974360,-6464.21816104,0.000118,2]
[331418923,1720370974415,-3114.54315855,0.000118,2]
[331418925,1720370974463,-6331.49671071,0.000118,2]
[331418926,1720370974496,-132.72145033,0.00011973,2]
[331418928,1720370996561,500.0,0.00034343,30]
[331418929,1720370997677,500.0,0.00034343,30]
[331418930,1720370998090,500.0,0.00034343,30]
[331418931,1720370998443,500.0,0.00034343,30]
[331418934,1720370998793,500.0,0.00034343,30]
[331418935,1720370999171,500.0,0.00034343,30]
[331418936,1720370999493,500.0,0.00034343,30]
[331418937,1720370999859,500.0,0.00034343,30]
[331418938,1720371000227,500.0,0.00034343,30]
[331418939,1720371000546,500.0,0.00034343,30]
[331418940,1720371000945,500.0,0.00034343,30]
[331418941,1720371001311,500.0,0.00034343,30]
[331418942,1720371001689,500.0,0.00034343,30]
[331418943,1720371002020,500.0,0.00034343,30]
[331418944,1720371002395,500.0,0.00034343,30]
[331418945,1720371002776,500.0,0.00034343,30]
[331418946,1720371004856,500.0,0.00034343,30]
[331418947,1720371004943,500.0,0.00034343,30]
[331418948,1720371005042,500.0,0.00034343,30]
[331418949,1720371005131,500.0,0.00034343,30]
[331418950,1720371006147,500.0,0.00034343,30]
[331418951,1720371006504,500.0,0.00034343,30]
[331418952,1720371006868,500.0,0.00034343,30]
[331418953,1720371007227,500.0,0.00034343,30]
[331418954,1720371007583,500.0,0.00034343,30]
[331418955,1720371007959,500.0,0.00034343,30]
[331418956,1720371008318,500.0,0.00034343,30]
[331418957,1720371008673,500.0,0.00034343,30]
[331418958,1720371009419,500.0,0.00034343,30]
[331418959,1720371009783,500.0,0.00034343,30]
[331418960,1720371010181,500.0,0.00034343,30]
[331418961,1720371010566,500.0,0.00034343,30]
[331418962,1720371010903,150.0,0.00011199,2]
[331418963,1720371010933,43.58247503,0.00011199,2]
[331418964,1720371010971,500.0,0.00034343,30]
[331418965,1720371011317,500.0,0.00034343,30]
[331418966,1720371011686,500.0,0.00034343,30]
[331418967,1720371012072,500.0,0.00034343,30]
[331418968,1720371012462,500.0,0.00034343,30]
[331418969,1720371012841,500.0,0.00034343,30]
[331418970,1720371013204,500.0,0.00034343,30]
[331418971,1720371013596,500.0,0.00034343,30]
[331418972,1720371014024,500.0,0.00034343,30]
[331418973,1720371014783,500.0,0.00034343,30]
[331418974,1720371018572,500.0,0.00034343,30]
[331418981,1720371032139,-21.59854967,0.00011973,2]
[331418983,1720371032149,-150.0,0.00012027,2]
[331418985,1720371032159,-136.23485033,0.00012051,2]
[331418987,1720371032170,-18.08514967,0.00012051,2]
[331418989,1720371032179,-499.99,0.00012057,2]
[331418990,1720371032188,-150.99,0.00012057,2]
[331418991,1720371032204,-425.1123,0.0001209,2]
[331418992,1720371032213,-154.32,0.00012129,2]
[331418993,1720371032222,-154.32,0.00012207,2]
[331418994,1720371032230,-530.07,0.00012279,2]
[331418995,1720371032239,-1000.0,0.0001228,2]
[331418996,1720371032248,-154.32,0.00012285,2]
[331418997,1720371032257,-305.69878088,0.00012302,2]
[331418998,1720371032266,-155.0,0.00012302,2]
[331418999,1720371032275,-600.315,0.00012304,2]
[331419000,1720371032284,-154.32,0.00012363,2]
[331419001,1720371032294,-154.32,0.00012441,2]
[331419002,1720371032303,-154.32,0.00012519,2]
[331419003,1720371032312,-154.32,0.00012597,2]
[331419004,1720371032322,-344.28606759,0.0001271,2]
[331419005,1720371032331,-169.80600212,0.000128,2]
[331419006,1720371032341,-232.16,0.00012824,2]
[331419007,1720371032351,-169.80600208,0.0001283,2]
[331419008,1720371032362,-169.80600208,0.0001286,2]
[331419009,1720371032379,-883.3241,0.0001288,2]
[331419010,1720371032398,-169.80600208,0.0001289,2]
[331419011,1720371032416,-63362.47119377,0.00012899,2]
[331419012,1720371032439,-18986.70281233,0.00012899,2]
[331419014,1720371032464,-1251.2596,0.000129,2]
[331419016,1720371032484,-1976.53,0.000129,2]
[331419018,1720371032502,-165.3751,0.000129,2]
[331419019,1720371032520,-4527.0996,0.000129,2]
[331419020,1720371032540,-3061.2239,0.000129,2]
[331419021,1720371032560,-28903.8795,0.000129,2]
[331419022,1720371032578,-4406.76817585,0.000129,2]
[331419024,1720371032598,-5191.2482,0.000129,2]
[331419026,1720371032609,-217521.8038,0.000129,2]
[331419029,1720371032618,-169.08322514,0.0001292,2]
[331419031,1720371032628,-169.80600208,0.0001292,2]
[331419033,1720371032637,-322.76773481,0.0001292,2]
[331419034,1720371032646,-169.88866675,0.0001292,2]
[331419035,1720371032656,-367.02635876,0.0001292,2]
[331419036,1720371032665,-998.93537444,0.0001292,2]
[331419038,1720371032675,-883.32411,0.0001294,2]
[331419040,1720371032685,-150.0,0.00012986,2]
[331419043,1720371032702,-198.00670023,0.0001299,2]
[331419045,1720371032711,-198.00670023,0.0001299,2]
[331419046,1720371032720,-180821.39631499,0.00013,2]
[331419047,1720371032746,-3111.40281369,0.00013,2]